[Event "Early-Titled-Tuesday-Blitz-May-07-2024"]
[Site "Chess.com"]
[Date "2024.05.07"]
[Round "2"]
[White "2346PL"]
[Black "average_trans"]
[Result "1-0"]
[WhiteElo "2533"]
[BlackElo "2327"]
[TimeControl "180+1"]
[EndTime "8:17:32 PDT"]
[Termination "2346PL won by resignation"]

1. d4 {[%clk 0:03:00.9]} 1... a6 {[%clk 0:02:59.7]} 2. e4 {[%clk 0:02:59.4]}
2... b5 {[%clk 0:02:59.7]} 3. c4 {[%clk 0:02:58.3]} 3... bxc4 {[%clk 0:02:58.9]}
4. Bxc4 {[%clk 0:02:57.9]} 4... Bb7 {[%clk 0:02:59.6]} 5. Nc3 {[%clk 0:02:57.7]}
5... e6 {[%clk 0:02:59.7]} 6. d5 {[%clk 0:02:53.3]} 6... exd5 {[%clk 0:02:57.8]}
7. exd5 {[%clk 0:02:53]} 7... Bc5 {[%clk 0:02:54]} 8. Qg4 {[%clk 0:02:44.3]}
8... Qf6 {[%clk 0:02:49.3]} 9. Nf3 {[%clk 0:02:42.2]} 9... Ne7 {[%clk
0:02:38.2]} 10. O-O {[%clk 0:02:33.6]} 10... O-O {[%clk 0:02:37.4]} 11. Ne4
{[%clk 0:02:29.8]} 11... Qb6 {[%clk 0:02:33.7]} 12. Nxc5 {[%clk 0:02:23]} 12...
Qxc5 {[%clk 0:02:34.6]} 13. Be3 {[%clk 0:02:23.5]} 13... Qa5 {[%clk 0:02:09.9]}
14. Bd4 {[%clk 0:02:17.8]} 14... Ng6 {[%clk 0:02:04.7]} 15. h4 {[%clk
0:02:14.5]} 15... f6 {[%clk 0:01:34.4]} 16. h5 {[%clk 0:02:09.5]} 16... Ne5
{[%clk 0:01:28.5]} 17. Nxe5 {[%clk 0:02:01.6]} 17... fxe5 {[%clk 0:01:28.8]} 18.
Bxe5 {[%clk 0:02:02.1]} 18... Rf7 {[%clk 0:01:29.4]} 19. b4 {[%clk 0:01:53.8]}
19... Qxb4 {[%clk 0:01:26.1]} 20. Rab1 {[%clk 0:01:33.4]} 20... Qe7 {[%clk
0:01:21.5]} 21. Bxg7 {[%clk 0:01:21.7]} 21... Bc8 {[%clk 0:00:56.9]} 22. Bf6+
{[%clk 0:01:14.1]} 1-0

[Event "Early-Titled-Tuesday-Blitz-May-07-2024"]
[Site "Chess.com"]
[Date "2024.05.07"]
[Round "2"]
[White "ural58"]
[Black "arnash_bauyrzhan"]
[Result "1-0"]
[WhiteElo "2521"]
[BlackElo "2299"]
[TimeControl "180+1"]
[EndTime "8:17:39 PDT"]
[Termination "ural58 won on time"]

1. e4 {[%clk 0:03:00.9]} 1... c5 {[%clk 0:02:59.7]} 2. Nf3 {[%clk 0:02:57.9]}
2... e6 {[%clk 0:02:59.6]} 3. b3 {[%clk 0:02:56.6]} 3... Nc6 {[%clk 0:02:58.6]}
4. Bb2 {[%clk 0:02:54.4]} 4... d5 {[%clk 0:02:45.4]} 5. Bb5 {[%clk 0:02:52]}
5... a6 {[%clk 0:02:35.9]} 6. Bxc6+ {[%clk 0:02:43.7]} 6... bxc6 {[%clk
0:02:34.9]} 7. Qe2 {[%clk 0:02:43.8]} 7... Nf6 {[%clk 0:02:26.7]} 8. d3 {[%clk
0:02:27.3]} 8... Be7 {[%clk 0:02:10.4]} 9. Nbd2 {[%clk 0:02:18.8]} 9... O-O
{[%clk 0:02:09]} 10. Ne5 {[%clk 0:02:07.7]} 10... Qc7 {[%clk 0:01:57.6]} 11. f4
{[%clk 0:02:07.2]} 11... a5 {[%clk 0:01:53.4]} 12. a4 {[%clk 0:02:05.8]} 12...
Ba6 {[%clk 0:01:36.7]} 13. c4 {[%clk 0:01:49.8]} 13... Rab8 {[%clk 0:01:30.1]}
14. g4 {[%clk 0:01:47]} 1-0

[Event "Early-Titled-Tuesday-Blitz-May-07-2024"]
[Site "Chess.com"]
[Date "2024.05.07"]
[Round "2"]
[White "ilqar_74"]
[Black "Cipy77"]
[Result "1-0"]
[WhiteElo "2847"]
[BlackElo "2574"]
[TimeControl "180+1"]
[EndTime "8:17:44 PDT"]
[Termination "ilqar_74 won by resignation"]

1. e4 {[%clk 0:03:00.9]} 1... c5 {[%clk 0:02:57.3]} 2. Nf3 {[%clk 0:02:59.5]}
2... d6 {[%clk 0:02:56.7]} 3. d4 {[%clk 0:02:59.6]} 3... cxd4 {[%clk 0:02:57.6]}
4. Nxd4 {[%clk 0:03:00.5]} 4... Nf6 {[%clk 0:02:57.7]} 5. Nc3 {[%clk 0:03:01.1]}
5... Nc6 {[%clk 0:02:57.5]} 6. Be2 {[%clk 0:03:00.9]} 6... g6 {[%clk 0:02:57.6]}
7. Be3 {[%clk 0:03:00.7]} 7... Bg7 {[%clk 0:02:58]} 8. O-O {[%clk 0:03:00.7]}
8... O-O {[%clk 0:02:57.5]} 9. Qd2 {[%clk 0:02:58.5]} 9... Bd7 {[%clk
0:02:57.1]} 10. Rfd1 {[%clk 0:02:57]} 10... Rc8 {[%clk 0:02:57.4]} 11. h3 {[%clk
0:02:57.1]} 11... Nxd4 {[%clk 0:02:56.8]} 12. Bxd4 {[%clk 0:02:57.6]} 12... a6
{[%clk 0:02:56.9]} 13. f4 {[%clk 0:02:55.8]} 13... Bc6 {[%clk 0:02:48]} 14. e5
{[%clk 0:02:51.4]} 14... dxe5 {[%clk 0:02:45.1]} 15. fxe5 {[%clk 0:02:51]} 15...
Ne4 {[%clk 0:02:39.4]} 16. Nxe4 {[%clk 0:02:50.3]} 16... Bxe4 {[%clk 0:02:40]}
17. c4 {[%clk 0:02:48.6]} 17... Qc7 {[%clk 0:02:35]} 18. Qe3 {[%clk 0:02:37.2]}
18... Bc6 {[%clk 0:02:35]} 19. e6 {[%clk 0:02:29.3]} 19... Bxd4 {[%clk
0:02:21.9]} 20. Rxd4 {[%clk 0:02:28.2]} 20... f6 {[%clk 0:02:18.7]} 21. Rad1
{[%clk 0:02:27.7]} 21... Rfd8 {[%clk 0:02:13.4]} 22. b4 {[%clk 0:02:23.5]} 22...
Kg7 {[%clk 0:02:09.1]} 23. c5 {[%clk 0:01:52.4]} 23... Ba4 {[%clk 0:01:57.4]}
24. R1d2 {[%clk 0:01:50.9]} 24... a5 {[%clk 0:01:56.2]} 25. a3 {[%clk 0:01:48]}
25... axb4 {[%clk 0:01:55.4]} 26. axb4 {[%clk 0:01:48]} 26... b6 {[%clk
0:01:54]} 27. Rxd8 {[%clk 0:01:41.6]} 27... Rxd8 {[%clk 0:01:53]} 28. Rxd8
{[%clk 0:01:40.5]} 28... Qxd8 {[%clk 0:01:52.8]} 29. cxb6 {[%clk 0:01:40.4]}
29... Bc6 {[%clk 0:01:38.3]} 30. Qc5 {[%clk 0:01:39]} 30... Bb7 {[%clk
0:01:36.5]} 31. Kh2 {[%clk 0:01:30.6]} 31... Qd2 {[%clk 0:01:26.8]} 32. Qxe7+
{[%clk 0:01:20.9]} 32... Kh6 {[%clk 0:01:26.7]} 33. Qxb7 {[%clk 0:01:20.4]}
33... Qxe2 {[%clk 0:01:20.7]} 34. Qc7 {[%clk 0:01:20.4]} 1-0

[Event "Early-Titled-Tuesday-Blitz-May-07-2024"]
[Site "Chess.com"]
[Date "2024.05.07"]
[Round "2"]
[White "Ziyamammadov"]
[Black "ChessSG1"]
[Result "0-1"]
[WhiteElo "1975"]
[BlackElo "2434"]
[TimeControl "180+1"]
[EndTime "8:17:52 PDT"]
[Termination "ChessSG1 won by resignation"]

1. e4 {[%clk 0:02:59.8]} 1... c5 {[%clk 0:02:59.8]} 2. Nf3 {[%clk 0:03:00.2]}
2... g6 {[%clk 0:03:00.1]} 3. d4 {[%clk 0:03:01.1]} 3... cxd4 {[%clk 0:03:00]}
4. Nxd4 {[%clk 0:03:02]} 4... Nc6 {[%clk 0:03:00.1]} 5. Nc3 {[%clk 0:03:02.9]}
5... Bg7 {[%clk 0:03:00.1]} 6. Be3 {[%clk 0:03:02.6]} 6... Nf6 {[%clk
0:02:59.5]} 7. f3 {[%clk 0:03:02.1]} 7... O-O {[%clk 0:02:39.5]} 8. Qd2 {[%clk
0:03:00.8]} 8... d5 {[%clk 0:02:38.8]} 9. Nxc6 {[%clk 0:02:45.2]} 9... bxc6
{[%clk 0:02:37.9]} 10. O-O-O {[%clk 0:02:40.1]} 10... Rb8 {[%clk 0:02:24.5]} 11.
Bxa7 {[%clk 0:02:24]} 11... Ra8 {[%clk 0:02:18.9]} 12. Bd4 {[%clk 0:02:21.4]}
12... Qa5 {[%clk 0:01:56.6]} 13. a3 {[%clk 0:02:07.9]} 13... c5 {[%clk
0:01:44.3]} 14. Bxf6 {[%clk 0:01:30.6]} 14... Bxf6 {[%clk 0:01:45.2]} 15. Nxd5
{[%clk 0:01:30.6]} 15... Bxb2+ {[%clk 0:01:44.7]} 16. Kb1 {[%clk 0:01:13.8]}
16... Qxa3 {[%clk 0:01:43.7]} 17. c3 {[%clk 0:01:13.4]} 17... Qb3 {[%clk
0:01:27.7]} 18. Qxb2 {[%clk 0:00:31.9]} 18... Qxd1+ {[%clk 0:01:26.1]} 19. Qc1
{[%clk 0:00:32.6]} 19... Ra1+ {[%clk 0:01:12.6]} 20. Kb2 {[%clk 0:00:32.9]}
20... Qxc1+ {[%clk 0:01:12.3]} 0-1

[Event "Early-Titled-Tuesday-Blitz-May-07-2024"]
[Site "Chess.com"]
[Date "2024.05.07"]
[Round "2"]
[White "lamomiajunior"]
[Black "emeli_chess"]
[Result "1-0"]
[WhiteElo "2818"]
[BlackElo "2414"]
[TimeControl "180+1"]
[EndTime "8:17:56 PDT"]
[Termination "lamomiajunior won by resignation"]

1. d4 {[%clk 0:03:00.9]} 1... Nf6 {[%clk 0:02:59.4]} 2. Nc3 {[%clk 0:03:01.2]}
2... d5 {[%clk 0:02:59]} 3. Bf4 {[%clk 0:03:01.6]} 3... c5 {[%clk 0:02:58.7]} 4.
e4 {[%clk 0:03:01.1]} 4... cxd4 {[%clk 0:02:57.3]} 5. Qxd4 {[%clk 0:03:00.6]}
5... Nc6 {[%clk 0:02:57.8]} 6. Bb5 {[%clk 0:03:00.5]} 6... Bd7 {[%clk
0:02:58.3]} 7. Bxc6 {[%clk 0:03:00.9]} 7... Bxc6 {[%clk 0:02:58.7]} 8. e5 {[%clk
0:03:01.5]} 8... Ne4 {[%clk 0:02:59]} 9. e6 {[%clk 0:03:01.4]} 9... fxe6 {[%clk
0:02:57.2]} 10. Nge2 {[%clk 0:02:59.1]} 10... Qb6 {[%clk 0:02:46.3]} 11. Nxe4
{[%clk 0:02:57.3]} 11... dxe4 {[%clk 0:02:34.8]} 12. O-O-O {[%clk 0:02:56.9]}
12... Qxd4 {[%clk 0:02:31.3]} 13. Nxd4 {[%clk 0:02:57.8]} 13... Rc8 {[%clk
0:02:12.1]} 14. Nxe6 {[%clk 0:02:54.3]} 14... Kf7 {[%clk 0:02:08.5]} 15. Nd4
{[%clk 0:02:50.3]} 15... g6 {[%clk 0:02:03.4]} 16. Rhe1 {[%clk 0:02:49.8]} 16...
Bg7 {[%clk 0:02:01]} 17. Nxc6 {[%clk 0:02:49.9]} 17... Rxc6 {[%clk 0:02:00.9]}
18. Rxe4 {[%clk 0:02:49]} 18... Rhc8 {[%clk 0:02:00.8]} 19. c3 {[%clk
0:02:49.5]} 19... Bf6 {[%clk 0:01:48]} 20. Rd7 {[%clk 0:02:47.7]} 20... Rb6
{[%clk 0:01:37.4]} 21. g4 {[%clk 0:02:43.1]} 21... g5 {[%clk 0:01:34.2]} 22. Be3
{[%clk 0:02:42.5]} 22... Rb5 {[%clk 0:01:31.2]} 23. a4 {[%clk 0:02:41.9]} 23...
Ra5 {[%clk 0:01:18.9]} 24. Rxb7 {[%clk 0:02:41.1]} 24... a6 {[%clk 0:01:14.6]}
25. f4 {[%clk 0:02:30.2]} 25... gxf4 {[%clk 0:01:08]} 26. Bxf4 {[%clk
0:02:31.1]} 26... Rd5 {[%clk 0:01:05.5]} 27. g5 {[%clk 0:02:28.1]} 27... Bxg5
{[%clk 0:01:04.1]} 28. Bxg5 {[%clk 0:02:29]} 28... Rxg5 {[%clk 0:01:03.4]} 29.
Rexe7+ {[%clk 0:02:29.1]} 29... Kf6 {[%clk 0:01:03.2]} 30. Rf7+ {[%clk
0:02:28.7]} 30... Ke6 {[%clk 0:01:03]} 31. Rxh7 {[%clk 0:02:27.6]} 31... Rg2
{[%clk 0:01:03.1]} 32. Rh6+ {[%clk 0:02:25.2]} 32... Kd5 {[%clk 0:01:02.3]} 33.
Rxa6 {[%clk 0:02:24.3]} 33... Kc4 {[%clk 0:01:01.2]} 34. Rb4+ {[%clk 0:02:21.5]}
34... Kd3 {[%clk 0:01:00.5]} 35. Rd6+ {[%clk 0:02:21.7]} 35... Ke3 {[%clk
0:01:00.8]} 36. Kb1 {[%clk 0:02:21.9]} 36... Rxh2 {[%clk 0:00:58]} 37. a5 {[%clk
0:02:21.9]} 37... Rc5 {[%clk 0:00:50.3]} 38. a6 {[%clk 0:02:19.8]} 38... Ra5
{[%clk 0:00:50.3]} 39. Rbd4 {[%clk 0:02:18.1]} 39... Rh1+ {[%clk 0:00:47.1]} 40.
Kc2 {[%clk 0:02:18.1]} 40... Rha1 {[%clk 0:00:45.6]} 41. Kb3 {[%clk 0:02:16.8]}
41... Rxa6 {[%clk 0:00:42]} 42. Rxa6 {[%clk 0:02:16.4]} 42... Rxa6 {[%clk
0:00:42.3]} 43. Rd8 {[%clk 0:02:16.9]} 43... Ke4 {[%clk 0:00:41.8]} 44. c4
{[%clk 0:02:17.1]} 44... Ke5 {[%clk 0:00:40.3]} 45. c5 {[%clk 0:02:17.2]} 45...
Ke6 {[%clk 0:00:40.1]} 46. Kc4 {[%clk 0:02:17]} 46... Ke7 {[%clk 0:00:38.5]} 47.
Rd2 {[%clk 0:02:16.4]} 47... Ra8 {[%clk 0:00:36.4]} 48. c6 {[%clk 0:02:15.9]}
1-0

[Event "Early-Titled-Tuesday-Blitz-May-07-2024"]
[Site "Chess.com"]
[Date "2024.05.07"]
[Round "2"]
[White "Goffredo_Fofi"]
[Black "RebecaJimnz"]
[Result "1-0"]
[WhiteElo "2523"]
[BlackElo "2309"]
[TimeControl "180+1"]
[EndTime "8:17:56 PDT"]
[Termination "Goffredo_Fofi won by resignation"]

1. e4 {[%clk 0:03:00.9]} 1... c5 {[%clk 0:03:00]} 2. d3 {[%clk 0:03:00.7]} 2...
Nc6 {[%clk 0:03:00.3]} 3. g3 {[%clk 0:03:01]} 3... g6 {[%clk 0:03:00.9]} 4. Bg2
{[%clk 0:03:01.4]} 4... Bg7 {[%clk 0:03:01.7]} 5. f4 {[%clk 0:03:02.1]} 5... d6
{[%clk 0:03:01.9]} 6. Nf3 {[%clk 0:03:02.7]} 6... Nf6 {[%clk 0:03:02.5]} 7. O-O
{[%clk 0:03:03.2]} 7... O-O {[%clk 0:03:03.1]} 8. h3 {[%clk 0:03:03.7]} 8... Rb8
{[%clk 0:02:59.4]} 9. g4 {[%clk 0:03:04]} 9... b5 {[%clk 0:02:55.3]} 10. Nc3
{[%clk 0:03:04.1]} 10... b4 {[%clk 0:02:54.7]} 11. Ne2 {[%clk 0:03:04.8]} 11...
Bb7 {[%clk 0:02:53.9]} 12. Be3 {[%clk 0:03:03.1]} 12... a5 {[%clk 0:02:53.7]}
13. Rb1 {[%clk 0:03:02]} 13... a4 {[%clk 0:02:53.4]} 14. b3 {[%clk 0:02:53.8]}
14... axb3 {[%clk 0:02:45.4]} 15. axb3 {[%clk 0:02:54.7]} 15... Ra8 {[%clk
0:02:35]} 16. Qe1 {[%clk 0:02:51.6]} 16... Ra2 {[%clk 0:02:32.9]} 17. Rc1 {[%clk
0:02:51.9]} 17... Qa5 {[%clk 0:02:27.7]} 18. f5 {[%clk 0:02:50]} 18... Ra8
{[%clk 0:02:25.5]} 19. Nf4 {[%clk 0:02:45.9]} 19... Nd7 {[%clk 0:02:17.6]} 20.
Nd5 {[%clk 0:02:44.2]} 20... Nb6 {[%clk 0:01:43.7]} 21. fxg6 {[%clk 0:02:02.5]}
21... hxg6 {[%clk 0:01:42.9]} 22. Ng5 {[%clk 0:01:52.9]} 22... Nxd5 {[%clk
0:01:37.6]} 23. exd5 {[%clk 0:01:53.8]} 23... Ne5 {[%clk 0:01:38.1]} 24. Qh4
{[%clk 0:01:53.4]} 24... Qa3 {[%clk 0:01:01.3]} 25. Qh7+ {[%clk 0:01:48.6]}
25... Kf8 {[%clk 0:01:01.2]} 26. Ne6+ {[%clk 0:01:37.6]} 26... Ke8 {[%clk
0:00:58.7]} 27. Qxg7 {[%clk 0:01:28.9]} 27... fxe6 {[%clk 0:00:54.9]} 28. dxe6
{[%clk 0:01:29.8]} 28... Kd8 {[%clk 0:00:37]} 29. Rf8+ {[%clk 0:01:28]} 29...
Kc7 {[%clk 0:00:36.8]} 30. Qxe7+ {[%clk 0:01:28.6]} 1-0

[Event "Early-Titled-Tuesday-Blitz-May-07-2024"]
[Site "Chess.com"]
[Date "2024.05.07"]
[Round "2"]
[White "Franmu14"]
[Black "vanyakuba"]
[Result "1-0"]
[WhiteElo "2710"]
[BlackElo "2401"]
[TimeControl "180+1"]
[EndTime "8:18:02 PDT"]
[Termination "Franmu14 won by resignation"]

1. e4 {[%clk 0:03:00.9]} 1... d5 {[%clk 0:03:00]} 2. exd5 {[%clk 0:03:00.6]}
2... Qxd5 {[%clk 0:03:00.9]} 3. Nc3 {[%clk 0:03:00.8]} 3... Qa5 {[%clk
0:03:01.2]} 4. d4 {[%clk 0:03:01]} 4... Nf6 {[%clk 0:03:01.6]} 5. Bc4 {[%clk
0:03:01.2]} 5... Bg4 {[%clk 0:03:00.5]} 6. Nf3 {[%clk 0:02:59.1]} 6... Nc6
{[%clk 0:03:00]} 7. h3 {[%clk 0:02:59]} 7... Bh5 {[%clk 0:02:48.6]} 8. g4 {[%clk
0:02:58.5]} 8... Bg6 {[%clk 0:02:49.1]} 9. Be3 {[%clk 0:02:58.5]} 9... O-O-O
{[%clk 0:02:48.8]} 10. Qe2 {[%clk 0:02:58.7]} 10... e6 {[%clk 0:02:25.6]} 11.
O-O {[%clk 0:02:54.5]} 11... Bb4 {[%clk 0:02:23.1]} 12. a3 {[%clk 0:02:53.5]}
12... Bxc3 {[%clk 0:02:22]} 13. bxc3 {[%clk 0:02:54.4]} 13... Qxc3 {[%clk
0:02:22.3]} 14. Rab1 {[%clk 0:02:50.6]} 14... Qxc2 {[%clk 0:02:16.8]} 15. Bd2
{[%clk 0:02:38.6]} 15... Nxd4 {[%clk 0:01:46.8]} 16. Nxd4 {[%clk 0:02:33.4]}
16... Rxd4 {[%clk 0:01:47.7]} 17. Ba6 {[%clk 0:02:32.1]} 17... Qxd2 {[%clk
0:01:10.2]} 18. Bxb7+ {[%clk 0:02:29.8]} 18... Kd8 {[%clk 0:01:08.3]} 19. Qa6
{[%clk 0:02:13.5]} 19... Bxb1 {[%clk 0:00:52.1]} 20. Qxa7 {[%clk 0:02:12.3]}
20... Bd3 {[%clk 0:00:25.4]} 21. Qxd4+ {[%clk 0:02:03.9]} 21... Nd5 {[%clk
0:00:18.8]} 22. Bxd5 {[%clk 0:01:52.9]} 22... exd5 {[%clk 0:00:19.7]} 23. Rb1
{[%clk 0:01:52.5]} 23... Bxb1 {[%clk 0:00:01.4]} 24. Qxd2 {[%clk 0:01:52.3]}
24... c6 {[%clk 0:00:01.8]} 25. Qb2 {[%clk 0:01:50.1]} 25... Be4 {[%clk
0:00:01.4]} 26. Qb8+ {[%clk 0:01:49.9]} 26... Kd7 {[%clk 0:00:01.4]} 27. Qxh8
{[%clk 0:01:50.8]} 27... c5 {[%clk 0:00:01.8]} 28. Qxg7 {[%clk 0:01:51.3]} 28...
c4 {[%clk 0:00:02.1]} 29. Qxf7+ {[%clk 0:01:51.8]} 1-0

[Event "Early-Titled-Tuesday-Blitz-May-07-2024"]
[Site "Chess.com"]
[Date "2024.05.07"]
[Round "2"]
[White "Agibileg"]
[Black "Aswathchess"]
[Result "1-0"]
[WhiteElo "2910"]
[BlackElo "2612"]
[TimeControl "180+1"]
[EndTime "8:18:03 PDT"]
[Termination "Agibileg won by resignation"]

1. d4 {[%clk 0:03:00.9]} 1... Nf6 {[%clk 0:02:57.2]} 2. c4 {[%clk 0:03:00.6]}
2... c5 {[%clk 0:02:56.9]} 3. d5 {[%clk 0:02:59.7]} 3... e6 {[%clk 0:02:56.9]}
4. Nc3 {[%clk 0:02:59.1]} 4... exd5 {[%clk 0:02:56.1]} 5. cxd5 {[%clk 0:03:00]}
5... d6 {[%clk 0:02:56.4]} 6. e4 {[%clk 0:03:00.4]} 6... g6 {[%clk 0:02:56.7]}
7. h3 {[%clk 0:02:59.8]} 7... Bg7 {[%clk 0:02:56.5]} 8. Bd3 {[%clk 0:03:00.3]}
8... O-O {[%clk 0:02:56.6]} 9. Nf3 {[%clk 0:03:00.8]} 9... b5 {[%clk 0:02:55.8]}
10. Nxb5 {[%clk 0:02:52]} 10... Re8 {[%clk 0:02:54.9]} 11. O-O {[%clk
0:02:51.9]} 11... Nxe4 {[%clk 0:02:53.8]} 12. Bxe4 {[%clk 0:02:52.1]} 12... Rxe4
{[%clk 0:02:52.9]} 13. Bg5 {[%clk 0:02:52.3]} 13... Qd7 {[%clk 0:02:30.3]} 14.
Nc3 {[%clk 0:02:51.1]} 14... Re8 {[%clk 0:02:29.1]} 15. Re1 {[%clk 0:02:50.8]}
15... Ba6 {[%clk 0:02:13.1]} 16. Qd2 {[%clk 0:02:46.6]} 16... Rxe1+ {[%clk
0:01:26.5]} 17. Rxe1 {[%clk 0:02:44.1]} 17... Qc8 {[%clk 0:01:26.5]} 18. Ne4
{[%clk 0:02:41.4]} 18... Nd7 {[%clk 0:01:21.4]} 19. Nxd6 {[%clk 0:02:40.5]}
19... Qb8 {[%clk 0:01:16.4]} 20. Qf4 {[%clk 0:02:34.7]} 20... f6 {[%clk
0:01:09.5]} 21. Re7 {[%clk 0:02:32.6]} 21... Qd8 {[%clk 0:01:04.5]} 22. Qe3
{[%clk 0:02:09.8]} 22... Nf8 {[%clk 0:00:32.6]} 23. Bf4 {[%clk 0:01:49.7]} 23...
g5 {[%clk 0:00:26]} 24. Bg3 {[%clk 0:01:42.4]} 24... Rb8 {[%clk 0:00:20.3]} 25.
Nf5 {[%clk 0:01:40.7]} 1-0

[Event "Early-Titled-Tuesday-Blitz-May-07-2024"]
[Site "Chess.com"]
[Date "2024.05.07"]
[Round "2"]
[White "bilelou"]
[Black "pauliukevicius"]
[Result "0-1"]
[WhiteElo "2633"]
[BlackElo "2418"]
[TimeControl "180+1"]
[EndTime "8:18:08 PDT"]
[Termination "pauliukevicius won by resignation"]

1. e4 {[%clk 0:03:00.9]} 1... e5 {[%clk 0:02:57.9]} 2. Qh5 {[%clk 0:02:53.3]}
2... Nc6 {[%clk 0:02:57.6]} 3. Bc4 {[%clk 0:02:49.9]} 3... g6 {[%clk 0:02:56.4]}
4. Qf3 {[%clk 0:02:48.8]} 4... Nf6 {[%clk 0:02:56.3]} 5. Ne2 {[%clk 0:02:47]}
5... Bg7 {[%clk 0:02:51.9]} 6. d3 {[%clk 0:02:46.5]} 6... d6 {[%clk 0:02:52.3]}
7. Bb3 {[%clk 0:02:45.4]} 7... Bg4 {[%clk 0:02:51.8]} 8. Qe3 {[%clk 0:02:38.7]}
8... h5 {[%clk 0:02:45.5]} 9. O-O {[%clk 0:02:34.7]} 9... Bh6 {[%clk 0:02:44.5]}
10. f4 {[%clk 0:02:35.3]} 10... Bxe2 {[%clk 0:02:42.9]} 11. Qxe2 {[%clk
0:02:33.4]} 11... Nd4 {[%clk 0:02:43.3]} 12. Qe1 {[%clk 0:02:29.7]} 12... exf4
{[%clk 0:02:36.2]} 13. e5 {[%clk 0:02:17.3]} 13... Ng4 {[%clk 0:01:42.7]} 14.
exd6+ {[%clk 0:02:05.6]} 14... Kf8 {[%clk 0:01:42.6]} 15. Bxf4 {[%clk
0:02:06.1]} 15... Bxf4 {[%clk 0:01:39.8]} 16. Rxf4 {[%clk 0:02:07]} 16... Nxb3
{[%clk 0:01:40.3]} 17. axb3 {[%clk 0:01:58.9]} 17... Qxd6 {[%clk 0:01:39.6]} 18.
Raa4 {[%clk 0:01:59.4]} 18... Re8 {[%clk 0:01:36]} 19. Qf1 {[%clk 0:01:50.6]}
19... Qb6+ {[%clk 0:01:20.8]} 20. Kh1 {[%clk 0:01:43.8]} 20... Rh7 {[%clk
0:01:18.8]} 21. Nc3 {[%clk 0:01:40.7]} 21... Ne3 {[%clk 0:01:13.7]} 22. Qf2
{[%clk 0:01:29.7]} 22... Nd5 {[%clk 0:00:58.5]} 23. Qxb6 {[%clk 0:01:28.2]}
23... axb6 {[%clk 0:00:56.2]} 24. Rfe4 {[%clk 0:01:27.6]} 24... Rxe4 {[%clk
0:00:54.4]} 25. dxe4 {[%clk 0:01:28.5]} 25... Nxc3 {[%clk 0:00:54.4]} 26. bxc3
{[%clk 0:01:27.3]} 26... Ke7 {[%clk 0:00:53.5]} 27. Ra7 {[%clk 0:01:25.9]} 27...
Kd6 {[%clk 0:00:51.7]} 28. Rxb7 {[%clk 0:01:26.3]} 28... Rh8 {[%clk 0:00:52.1]}
29. e5+ {[%clk 0:01:26.3]} 29... Kc6 {[%clk 0:00:51.6]} 30. Ra7 {[%clk 0:01:26]}
30... Re8 {[%clk 0:00:52.4]} 31. h3 {[%clk 0:01:25.8]} 31... Rxe5 {[%clk
0:00:52.8]} 32. Ra4 {[%clk 0:01:25.6]} 32... Re2 {[%clk 0:00:52.7]} 33. Rc4+
{[%clk 0:01:25.7]} 33... Kd6 {[%clk 0:00:52.3]} 34. Rd4+ {[%clk 0:01:25.7]}
34... Ke7 {[%clk 0:00:53]} 35. Rc4 {[%clk 0:01:25.8]} 35... c5 {[%clk
0:00:51.9]} 36. b4 {[%clk 0:01:25.7]} 36... Rxc2 {[%clk 0:00:51.4]} 37. bxc5
{[%clk 0:01:26.1]} 37... bxc5 {[%clk 0:00:52.1]} 38. Rf4 {[%clk 0:01:26.2]}
38... Rxc3 {[%clk 0:00:51.5]} 0-1

[Event "Early-Titled-Tuesday-Blitz-May-07-2024"]
[Site "Chess.com"]
[Date "2024.05.07"]
[Round "2"]
[White "FMOlexandrProhorov"]
[Black "Golubovsky"]
[Result "1-0"]
[WhiteElo "2292"]
[BlackElo "2492"]
[TimeControl "180+1"]
[EndTime "8:18:16 PDT"]
[Termination "FMOlexandrProhorov won by checkmate"]

1. Nf3 {[%clk 0:03:00.9]} 1... Nf6 {[%clk 0:02:59]} 2. d4 {[%clk 0:02:53.8]}
2... e6 {[%clk 0:02:59.1]} 3. c4 {[%clk 0:02:46.9]} 3... b6 {[%clk 0:02:58.1]}
4. g3 {[%clk 0:02:46.5]} 4... Bb7 {[%clk 0:02:58.4]} 5. Bg2 {[%clk 0:02:46.4]}
5... Be7 {[%clk 0:02:58.9]} 6. O-O {[%clk 0:02:46.5]} 6... O-O {[%clk
0:02:59.6]} 7. Qc2 {[%clk 0:02:43]} 7... Ne4 {[%clk 0:02:51.9]} 8. Rd1 {[%clk
0:02:30.5]} 8... f5 {[%clk 0:02:50]} 9. d5 {[%clk 0:02:29.1]} 9... exd5 {[%clk
0:02:39.7]} 10. cxd5 {[%clk 0:02:24.7]} 10... Na6 {[%clk 0:02:39.7]} 11. Nc3
{[%clk 0:02:21.9]} 11... Nxc3 {[%clk 0:02:36.6]} 12. bxc3 {[%clk 0:02:22.1]}
12... Nc5 {[%clk 0:02:34.2]} 13. c4 {[%clk 0:02:15.1]} 13... Bf6 {[%clk
0:02:32.6]} 14. Bb2 {[%clk 0:02:13.4]} 14... Qe7 {[%clk 0:02:32.8]} 15. Nd4
{[%clk 0:02:06.9]} 15... g6 {[%clk 0:02:30.4]} 16. d6 {[%clk 0:01:48.8]} 16...
cxd6 {[%clk 0:02:21.8]} 17. Bxb7 {[%clk 0:01:39.3]} 17... Nxb7 {[%clk
0:02:22.7]} 18. Nb5 {[%clk 0:01:35.4]} 18... Bxb2 {[%clk 0:01:57.8]} 19. Qxb2
{[%clk 0:01:34.7]} 19... Rfe8 {[%clk 0:01:58.3]} 20. Nc7 {[%clk 0:01:29.2]}
20... Na5 {[%clk 0:01:39.2]} 21. Nxa8 {[%clk 0:01:26.1]} 21... Rxa8 {[%clk
0:01:39.6]} 22. Qd2 {[%clk 0:01:07.5]} 22... Rc8 {[%clk 0:01:35.2]} 23. Qxd6
{[%clk 0:01:02.9]} 23... Qxd6 {[%clk 0:01:34.7]} 24. Rxd6 {[%clk 0:01:01.7]}
24... Rc7 {[%clk 0:01:35.6]} 25. Rad1 {[%clk 0:00:57.5]} 25... Rxc4 {[%clk
0:01:24.4]} 26. Rxd7 {[%clk 0:00:54.6]} 26... Nc6 {[%clk 0:01:24.9]} 27. Rc7
{[%clk 0:00:50.2]} 27... Ne5 {[%clk 0:00:54]} 28. Rd8# {[%clk 0:00:41.7]} 1-0